[Event "Titled Tuesday Blitz May 25 2021"]
[White "Maiorov, Nikita"]
[Black "Pastar, Slaven"]
[WhiteFideId "13501720"]
[BlackFideId "14402718"]
[WhiteElo "2440"]
[BlackElo "2227"]
[Result "1-0"]
[Round "04"]
[TimeControl "180+1"]
[Date "2021.05.25"]
[WhiteClock "0:01:19"]
[BlackClock "0:00:02"]

1. d4 {[%clk 0:02:55]}  g6 {[%clk 0:03:00]} 2. e4 {[%clk 0:02:54]}  d6 {[%clk 0:02:59]} 3. Nf3 {[%clk 0:02:54]}  b6 {[%clk 0:02:59]} 4. c3 {[%clk 0:02:53]}  Bb7 {[%clk 0:02:59]} 5. Bb5+ {[%clk 0:02:53]}  Nd7 {[%clk 0:02:59]} 6. Nbd2 {[%clk 0:02:37]}  Bg7 {[%clk 0:02:58]} 7. O-O {[%clk 0:02:37]}  Nf6 {[%clk 0:02:58]} 8. e5 {[%clk 0:02:36]}  Ne4 {[%clk 0:02:43]} 9. e6 {[%clk 0:02:30]}  fxe6 {[%clk 0:02:40]} 10. Nxe4 {[%clk 0:02:30]}  Bxe4 {[%clk 0:02:40]} 11. Ng5 {[%clk 0:02:30]}  Bf5 {[%clk 0:02:26]} 12. g4 {[%clk 0:02:29]}  h6 {[%clk 0:02:23]} 13. gxf5 {[%clk 0:02:28]}  hxg5 {[%clk 0:02:23]} 14. fxe6 {[%clk 0:02:29]}  O-O {[%clk 0:02:18]} 15. Bxd7 {[%clk 0:02:28]}  c5 {[%clk 0:02:12]} 16. Bxg5 {[%clk 0:02:26]}  Rf5 {[%clk 0:02:08]} 17. Qg4 {[%clk 0:02:24]}  cxd4 {[%clk 0:02:03]} 18. cxd4 {[%clk 0:02:24]}  Qf8 {[%clk 0:02:01]} 19. Be3 {[%clk 0:02:23]}  Qf6 {[%clk 0:01:56]} 20. Kh1 {[%clk 0:02:22]}  Rf8 {[%clk 0:01:53]} 21. Rg1 {[%clk 0:02:22]}  Rh5 {[%clk 0:01:48]} 22. Rg2 {[%clk 0:02:20]}  Kh7 {[%clk 0:01:36]} 23. Rag1 {[%clk 0:02:19]}  Bh6 {[%clk 0:01:27]} 24. Qxg6+ {[%clk 0:02:05]}  Qxg6 {[%clk 0:01:24]} 25. Rxg6 {[%clk 0:02:05]}  Bxe3 {[%clk 0:01:19]} 26. Rg7+ {[%clk 0:02:04]}  Kh8 {[%clk 0:01:18]} 27. fxe3 {[%clk 0:01:58]}  Rf2 {[%clk 0:01:08]} 28. Rg8+ {[%clk 0:01:57]}  Kh7 {[%clk 0:01:07]} 29. R1g7+ {[%clk 0:01:57]}  Kh6 {[%clk 0:01:05]} 30. Rh8+ {[%clk 0:01:57]}  Kxg7 {[%clk 0:01:05]} 31. Rxh5 {[%clk 0:01:57]}  Rxb2 {[%clk 0:01:05]} 32. a4 {[%clk 0:01:57]}  Re2 {[%clk 0:00:55]} 33. Rh3 {[%clk 0:01:55]}  a6 {[%clk 0:00:55]} 34. Rf3 {[%clk 0:01:55]}  Kg6 {[%clk 0:00:47]} 35. d5 {[%clk 0:01:52]}  Kg5 {[%clk 0:00:46]} 36. Kg1 {[%clk 0:01:45]}  Kg4 {[%clk 0:00:46]} 37. Rg3+ {[%clk 0:01:45]}  Kf5 {[%clk 0:00:44]} 38. Bc6 {[%clk 0:01:44]}  Ke4 {[%clk 0:00:34]} 39. h4 {[%clk 0:01:43]}  b5 {[%clk 0:00:16]} 40. axb5 {[%clk 0:01:42]}  axb5 {[%clk 0:00:17]} 41. Bxb5 {[%clk 0:01:39]}  Re1+ {[%clk 0:00:15]} 42. Kf2 {[%clk 0:01:31]}  Rh1 {[%clk 0:00:16]} 43. Bc6 {[%clk 0:01:27]}  Rxh4 {[%clk 0:00:15]} 44. Rg7 {[%clk 0:01:27]}  Rh2+ {[%clk 0:00:11]} 45. Kg3 {[%clk 0:01:27]}  Re2 {[%clk 0:00:11]} 46. Rxe7 {[%clk 0:01:27]}  Rxe3+ {[%clk 0:00:10]} 47. Kg4 {[%clk 0:01:26]}  Re1 {[%clk 0:00:10]} 48. Kg5 {[%clk 0:01:21]}  Ke5 {[%clk 0:00:08]} 49. Kg6 {[%clk 0:01:21]}  Rg1+ {[%clk 0:00:03]} 50. Kf7 {[%clk 0:01:21]}  Kf5 {[%clk 0:00:03]} 51. Ke8 {[%clk 0:01:20]}  Rg8+ {[%clk 0:00:02]} 52. Kd7 {[%clk 0:01:20]}  Kf6 {[%clk 0:00:02]} 53. Rf7+ {[%clk 0:01:20]}  Ke5 {[%clk 0:00:03]} 54. e7 {[%clk 0:01:19]}  Rg7 {[%clk 0:00:02]} 1-0


[Site "https://www.chess.com"]

[Event "Titled Tuesday Blitz May 25 2021"]
[White "Maksimovic, Bojan"]
[Black "Jary, Sergey"]
[WhiteFideId "14408120"]
[BlackFideId "14110350"]
[WhiteElo "2437"]
[BlackElo "2260"]
[Result "1-0"]
[Round "04"]
[TimeControl "180+1"]
[Date "2021.05.25"]
[WhiteClock "0:00:07"]
[BlackClock "0:00:26"]

1. g3 {[%clk 0:03:00]}  h5 {[%clk 0:02:58]} 2. Nf3 {[%clk 0:03:00]}  g6 {[%clk 0:02:58]} 3. d4 {[%clk 0:02:58]}  Bg7 {[%clk 0:02:58]} 4. Nc3 {[%clk 0:02:58]}  d5 {[%clk 0:02:58]} 5. Bg2 {[%clk 0:02:57]}  c6 {[%clk 0:02:57]} 6. Bg5 {[%clk 0:02:51]}  Nf6 {[%clk 0:02:54]} 7. Qd2 {[%clk 0:02:51]}  Bf5 {[%clk 0:02:52]} 8. Nh4 {[%clk 0:02:47]}  Ne4 {[%clk 0:02:46]} 9. Nxe4 {[%clk 0:02:32]}  Bxe4 {[%clk 0:02:42]} 10. f3 {[%clk 0:02:32]}  Bf5 {[%clk 0:02:40]} 11. Nxf5 {[%clk 0:02:30]}  gxf5 {[%clk 0:02:40]} 12. O-O-O {[%clk 0:02:27]}  Nd7 {[%clk 0:02:35]} 13. e4 {[%clk 0:02:26]}  fxe4 {[%clk 0:02:25]} 14. fxe4 {[%clk 0:02:27]}  Nf6 {[%clk 0:02:25]} 15. exd5 {[%clk 0:02:18]}  cxd5 {[%clk 0:02:22]} 16. h4 {[%clk 0:01:27]}  Qb6 {[%clk 0:02:13]} 17. Rhe1 {[%clk 0:01:18]}  e6 {[%clk 0:01:57]} 18. Rf1 {[%clk 0:01:17]}  Ng4 {[%clk 0:01:49]} 19. Bh3 {[%clk 0:01:10]}  f5 {[%clk 0:01:45]} 20. Bxg4 {[%clk 0:01:04]}  hxg4 {[%clk 0:01:43]} 21. Rfe1 {[%clk 0:01:01]}  Kf7 {[%clk 0:01:33]} 22. Kb1 {[%clk 0:00:55]}  Rac8 {[%clk 0:01:29]} 23. Bf4 {[%clk 0:00:55]}  a5 {[%clk 0:01:21]} 24. Be5 {[%clk 0:00:55]}  Bh6 {[%clk 0:01:22]} 25. Qd3 {[%clk 0:00:53]}  Qa6 {[%clk 0:01:18]} 26. Qxa6 {[%clk 0:00:41]}  bxa6 {[%clk 0:01:18]} 27. Bxh8 {[%clk 0:00:41]}  Rxh8 {[%clk 0:01:16]} 28. Rd3 {[%clk 0:00:41]}  Rb8 {[%clk 0:01:13]} 29. Rb3 {[%clk 0:00:32]}  Rb5 {[%clk 0:01:10]} 30. Rxb5 {[%clk 0:00:18]}  axb5 {[%clk 0:01:09]} 31. c3 {[%clk 0:00:19]}  Bf8 {[%clk 0:01:08]} 32. Kc2 {[%clk 0:00:16]}  Bd6 {[%clk 0:01:08]} 33. Rg1 {[%clk 0:00:17]}  Kf6 {[%clk 0:01:03]} 34. Kd3 {[%clk 0:00:17]}  f4 {[%clk 0:00:58]} 35. gxf4 {[%clk 0:00:18]}  Kf5 {[%clk 0:00:57]} 36. h5 {[%clk 0:00:07]}  Bf8 {[%clk 0:00:57]} 37. Ke3 {[%clk 0:00:05]}  a4 {[%clk 0:00:53]} 38. Rf1 {[%clk 0:00:03]}  Bg7 {[%clk 0:00:49]} 39. b3 {[%clk 0:00:03]}  a3 {[%clk 0:00:47]} 40. b4 {[%clk 0:00:03]}  Bf8 {[%clk 0:00:43]} 41. Kf2 {[%clk 0:00:03]}  Bg7 {[%clk 0:00:41]} 42. Kg3 {[%clk 0:00:04]}  Bf8 {[%clk 0:00:36]} 43. Rf2 {[%clk 0:00:04]}  Bg7 {[%clk 0:00:33]} 44. Re2 {[%clk 0:00:05]}  Bh6 {[%clk 0:00:31]} 45. Re5+ {[%clk 0:00:05]}  Kf6 {[%clk 0:00:31]} 46. Kxg4 {[%clk 0:00:05]}  Bg7 {[%clk 0:00:29]} 47. Re1 {[%clk 0:00:06]}  Bh6 {[%clk 0:00:29]} 48. Rb1 {[%clk 0:00:06]}  Bf8 {[%clk 0:00:25]} 49. Rb3 {[%clk 0:00:07]}  Be7 {[%clk 0:00:26]} 50. Rxa3 {[%clk 0:00:07]} 1-0


[Site "https://www.chess.com"]

[Event "Titled Tuesday Blitz May 25 2021"]
[White "Mirzoev, Azer"]
[Black "Andreikin, Dmitry"]
[WhiteFideId "13400304"]
[BlackFideId "4158814"]
[WhiteElo "2525"]
[BlackElo "2782"]
[Result "0-1"]
[Round "04"]
[TimeControl "180+1"]
[Date "2021.05.25"]
[WhiteClock "0:00:07"]
[BlackClock "0:00:43"]

1. d4 {[%clk 0:03:00]}  Nf6 {[%clk 0:02:59]} 2. Nf3 {[%clk 0:03:00]}  e6 {[%clk 0:02:57]} 3. c4 {[%clk 0:02:58]}  b6 {[%clk 0:02:57]} 4. Nc3 {[%clk 0:02:57]}  Bb4 {[%clk 0:02:55]} 5. Qc2 {[%clk 0:02:56]}  Bb7 {[%clk 0:02:52]} 6. a3 {[%clk 0:02:56]}  Bxc3+ {[%clk 0:02:53]} 7. Qxc3 {[%clk 0:02:57]}  d6 {[%clk 0:02:53]} 8. Bg5 {[%clk 0:02:57]}  Nbd7 {[%clk 0:02:52]} 9. e3 {[%clk 0:02:56]}  h6 {[%clk 0:02:47]} 10. Bh4 {[%clk 0:02:56]}  g5 {[%clk 0:02:45]} 11. Bg3 {[%clk 0:02:55]}  Ne4 {[%clk 0:02:46]} 12. Qc2 {[%clk 0:02:55]}  f5 {[%clk 0:02:46]} 13. Nd2 {[%clk 0:02:51]}  Nxg3 {[%clk 0:02:38]} 14. hxg3 {[%clk 0:02:50]}  Qf6 {[%clk 0:02:38]} 15. O-O-O {[%clk 0:02:48]}  O-O-O {[%clk 0:02:37]} 16. f3 {[%clk 0:02:37]}  Kb8 {[%clk 0:02:34]} 17. Nb1 {[%clk 0:02:32]}  g4 {[%clk 0:02:26]} 18. f4 {[%clk 0:02:23]}  h5 {[%clk 0:02:25]} 19. Nc3 {[%clk 0:02:20]}  h4 {[%clk 0:02:24]} 20. gxh4 {[%clk 0:02:19]}  Rxh4 {[%clk 0:02:25]} 21. Rxh4 {[%clk 0:02:20]}  Qxh4 {[%clk 0:02:26]} 22. d5 {[%clk 0:02:12]}  Qe7 {[%clk 0:02:24]} 23. Kb1 {[%clk 0:02:07]}  Rh8 {[%clk 0:02:20]} 24. Bd3 {[%clk 0:01:55]}  Nc5 {[%clk 0:02:19]} 25. Ka2 {[%clk 0:01:37]}  Rh2 {[%clk 0:02:12]} 26. Bf1 {[%clk 0:01:31]}  a5 {[%clk 0:02:09]} 27. Qd2 {[%clk 0:01:21]}  a4 {[%clk 0:02:04]} 28. Qd4 {[%clk 0:01:14]}  Nb3 {[%clk 0:01:56]} 29. Qd3 {[%clk 0:01:12]}  Nc5 {[%clk 0:01:55]} 30. Qc2 {[%clk 0:01:10]}  exd5 {[%clk 0:01:52]} 31. cxd5 {[%clk 0:01:09]}  Bc8 {[%clk 0:01:35]} 32. Nxa4 {[%clk 0:01:03]}  Qxe3 {[%clk 0:01:27]} 33. Nxc5 {[%clk 0:00:59]}  Qxc5 {[%clk 0:01:15]} 34. Qxc5 {[%clk 0:00:59]}  bxc5 {[%clk 0:01:16]} 35. Rd2 {[%clk 0:00:54]}  Bb7 {[%clk 0:01:10]} 36. Bc4 {[%clk 0:00:51]}  g3 {[%clk 0:01:09]} 37. a4 {[%clk 0:00:45]}  Rh4 {[%clk 0:01:08]} 38. b3 {[%clk 0:00:15]}  Rxf4 {[%clk 0:01:07]} 39. Ka3 {[%clk 0:00:12]}  Rf2 {[%clk 0:01:05]} 40. Rd3 {[%clk 0:00:12]}  f4 {[%clk 0:01:03]} 41. Rd1 {[%clk 0:00:08]}  Rxg2 {[%clk 0:01:01]} 42. Re1 {[%clk 0:00:09]}  Rd2 {[%clk 0:00:50]} 43. Re8+ {[%clk 0:00:08]}  Ka7 {[%clk 0:00:50]} 44. Rf8 {[%clk 0:00:07]}  g2 {[%clk 0:00:50]} 45. Rg8 {[%clk 0:00:07]}  f3 {[%clk 0:00:50]} 46. Rg7 {[%clk 0:00:07]}  Rd1 {[%clk 0:00:43]} 0-1


[Site "https://www.chess.com"]

[Event "Titled Tuesday Blitz May 25 2021"]
[White "Nazaretyan, Tigran"]
[Black "Piccoli, Lucas Fonseca"]
[WhiteFideId "24162345"]
[BlackFideId "2190788"]
[WhiteElo "2247"]
[BlackElo "1776"]
[Result "1-0"]
[Round "04"]
[TimeControl "180+1"]
[Date "2021.05.25"]
[WhiteClock "0:00:17"]
[BlackClock "0:00:06"]

1. d4 {[%clk 0:03:00]}  Nf6 {[%clk 0:02:59]} 2. c4 {[%clk 0:03:00]}  e6 {[%clk 0:03:00]} 3. Nf3 {[%clk 0:03:00]}  Bb4+ {[%clk 0:03:01]} 4. Bd2 {[%clk 0:02:59]}  Qe7 {[%clk 0:03:01]} 5. Nc3 {[%clk 0:02:53]}  b6 {[%clk 0:03:00]} 6. g3 {[%clk 0:02:53]}  Bb7 {[%clk 0:02:59]} 7. Bg2 {[%clk 0:02:53]}  O-O {[%clk 0:02:59]} 8. O-O {[%clk 0:02:53]}  Bxc3 {[%clk 0:02:59]} 9. Bxc3 {[%clk 0:02:53]}  d6 {[%clk 0:03:00]} 10. Rc1 {[%clk 0:02:49]}  Nbd7 {[%clk 0:03:00]} 11. b4 {[%clk 0:02:45]}  Rab8 {[%clk 0:02:49]} 12. a3 {[%clk 0:02:37]}  e5 {[%clk 0:02:48]} 13. dxe5 {[%clk 0:02:34]}  Nxe5 {[%clk 0:02:44]} 14. Nxe5 {[%clk 0:02:19]}  Bxg2 {[%clk 0:02:25]} 15. Kxg2 {[%clk 0:02:19]}  dxe5 {[%clk 0:02:24]} 16. Qd3 {[%clk 0:02:10]}  Qe6 {[%clk 0:02:06]} 17. Qe3 {[%clk 0:01:59]}  Rfe8 {[%clk 0:01:57]} 18. Bb2 {[%clk 0:01:48]}  h6 {[%clk 0:01:55]} 19. f3 {[%clk 0:01:46]}  c5 {[%clk 0:01:24]} 20. Rfd1 {[%clk 0:01:39]}  Rbc8 {[%clk 0:01:20]} 21. b5 {[%clk 0:01:35]}  e4 {[%clk 0:01:05]} 22. f4 {[%clk 0:01:16]}  Ng4 {[%clk 0:00:50]} 23. Qc3 {[%clk 0:01:15]}  Qg6 {[%clk 0:00:30]} 24. Rd6 {[%clk 0:01:07]}  Nf6 {[%clk 0:00:20]} 25. Rcd1 {[%clk 0:00:56]}  e3 {[%clk 0:00:21]} 26. Qd3 {[%clk 0:00:34]}  Qxd3 {[%clk 0:00:11]} 27. R1xd3 {[%clk 0:00:34]}  Ne4 {[%clk 0:00:10]} 28. Rd7 {[%clk 0:00:32]}  Nd2 {[%clk 0:00:10]} 29. Rxa7 {[%clk 0:00:20]}  Nxc4 {[%clk 0:00:09]} 30. Bc3 {[%clk 0:00:20]}  Rcd8 {[%clk 0:00:06]} 31. Rxd8 {[%clk 0:00:18]}  Rxd8 {[%clk 0:00:07]} 32. Kf3 {[%clk 0:00:18]}  Rd1 {[%clk 0:00:06]} 33. Re7 {[%clk 0:00:15]}  Rc1 {[%clk 0:00:04]} 34. Be5 {[%clk 0:00:14]}  f6 {[%clk 0:00:02]} 35. Bc7 {[%clk 0:00:14]}  Rc3 {[%clk 0:00:02]} 36. a4 {[%clk 0:00:14]}  Ra3 {[%clk 0:00:02]} 37. Rd7 {[%clk 0:00:13]}  Rxa4 {[%clk 0:00:02]} 38. Rd8+ {[%clk 0:00:11]}  Kh7 {[%clk 0:00:03]} 39. Rd7 {[%clk 0:00:11]}  Nd2+ {[%clk 0:00:03]} 40. Kxe3 {[%clk 0:00:11]}  Nc4+ {[%clk 0:00:04]} 41. Kd3 {[%clk 0:00:11]}  Nb2+ {[%clk 0:00:04]} 42. Kc2 {[%clk 0:00:11]}  Nc4 {[%clk 0:00:02]} 43. Kb3 {[%clk 0:00:11]}  Rb4+ {[%clk 0:00:03]} 44. Kc3 {[%clk 0:00:12]}  Na3 {[%clk 0:00:02]} 45. Bxb6 {[%clk 0:00:11]}  Nxb5+ {[%clk 0:00:03]} 46. Kc2 {[%clk 0:00:11]}  Rc4+ {[%clk 0:00:03]} 47. Kd3 {[%clk 0:00:11]}  Rc3+ {[%clk 0:00:03]} 48. Kd2 {[%clk 0:00:11]}  Rc4 {[%clk 0:00:03]} 49. Bd8 {[%clk 0:00:11]}  Re4 {[%clk 0:00:03]} 50. Bxf6 {[%clk 0:00:10]}  Kg6 {[%clk 0:00:02]} 51. Bxg7 {[%clk 0:00:11]}  c4 {[%clk 0:00:02]} 52. Ba1 {[%clk 0:00:10]}  c3+ {[%clk 0:00:02]} 53. Bxc3 {[%clk 0:00:09]}  Nxc3 {[%clk 0:00:03]} 54. Kxc3 {[%clk 0:00:10]}  Rxe2 {[%clk 0:00:04]} 55. h4 {[%clk 0:00:10]}  Re3+ {[%clk 0:00:04]} 56. Rd3 {[%clk 0:00:10]}  Re2 {[%clk 0:00:02]} 57. g4 {[%clk 0:00:11]}  Rg2 {[%clk 0:00:02]} 58. h5+ {[%clk 0:00:11]}  Kf6 {[%clk 0:00:02]} 59. Rd6+ {[%clk 0:00:11]}  Kg7 {[%clk 0:00:02]} 60. Rg6+ {[%clk 0:00:11]}  Kh7 {[%clk 0:00:03]} 61. Kd4 {[%clk 0:00:12]}  Rf2 {[%clk 0:00:04]} 62. Ke4 {[%clk 0:00:12]}  Re2+ {[%clk 0:00:04]} 63. Kf3 {[%clk 0:00:12]}  Rd2 {[%clk 0:00:05]} 64. Re6 {[%clk 0:00:12]}  Rd3+ {[%clk 0:00:05]} 65. Re3 {[%clk 0:00:12]}  Rd5 {[%clk 0:00:06]} 66. Re5 {[%clk 0:00:12]}  Rd3+ {[%clk 0:00:06]} 67. Ke4 {[%clk 0:00:12]}  Ra3 {[%clk 0:00:06]} 68. Kf5 {[%clk 0:00:12]}  Ra4 {[%clk 0:00:06]} 69. Re7+ {[%clk 0:00:12]}  Kg8 {[%clk 0:00:06]} 70. Re6 {[%clk 0:00:13]}  Ra5+ {[%clk 0:00:05]} 71. Kg6 {[%clk 0:00:13]}  Kf8 {[%clk 0:00:05]} 72. Kxh6 {[%clk 0:00:12]}  Ra4 {[%clk 0:00:06]} 73. Rf6+ {[%clk 0:00:12]}  Ke7 {[%clk 0:00:05]} 74. g5 {[%clk 0:00:12]}  Ra8 {[%clk 0:00:06]} 75. Kg6 {[%clk 0:00:13]}  Rg8+ {[%clk 0:00:06]} 76. Kf5 {[%clk 0:00:13]}  Rh8 {[%clk 0:00:07]} 77. h6 {[%clk 0:00:14]}  Ke8 {[%clk 0:00:07]} 78. Ra6 {[%clk 0:00:14]}  Ke7 {[%clk 0:00:07]} 79. Ra7+ {[%clk 0:00:14]}  Kd6 {[%clk 0:00:07]} 80. Kg6 {[%clk 0:00:14]}  Rf8 {[%clk 0:00:06]} 81. f5 {[%clk 0:00:14]}  Rg8+ {[%clk 0:00:06]} 82. Kh5 {[%clk 0:00:15]}  Rf8 {[%clk 0:00:07]} 83. f6 {[%clk 0:00:15]}  Ke5 {[%clk 0:00:07]} 84. h7 {[%clk 0:00:15]}  Rd8 {[%clk 0:00:07]} 85. Rg7 {[%clk 0:00:15]}  Kf5 {[%clk 0:00:06]} 86. Rg8 {[%clk 0:00:15]}  Rd3 {[%clk 0:00:06]} 87. Kh6 {[%clk 0:00:15]}  Rh3+ {[%clk 0:00:02]} 88. Kg7 {[%clk 0:00:16]}  Kxg5 {[%clk 0:00:03]} 89. h8=Q {[%clk 0:00:15]}  Rd3 {[%clk 0:00:04]} 90. Qh6+ {[%clk 0:00:15]}  Kg4 {[%clk 0:00:04]} 91. Qg6+ {[%clk 0:00:15]}  Kf4 {[%clk 0:00:04]} 92. Qxd3 {[%clk 0:00:16]}  Ke5 {[%clk 0:00:04]} 93. Re8+ {[%clk 0:00:16]}  Kf4 {[%clk 0:00:05]} 94. Re4+ {[%clk 0:00:17]}  Kg5 {[%clk 0:00:06]} 95. Qd5# {[%clk 0:00:17]} 1-0


[Site "https://www.chess.com"]

[Event "Titled Tuesday Blitz May 25 2021"]
[White "Ozkan, Ervin"]
[Black "Holt, Conrad"]
[WhiteFideId "6306004"]
[BlackFideId "2034387"]
[WhiteElo "2226"]
[BlackElo "2586"]
[Result "1-0"]
[Round "04"]
[TimeControl "180+1"]
[Date "2021.05.25"]
[WhiteClock "0:00:48"]
[BlackClock "0:00:03"]

1. d4 {[%clk 0:03:00]}  d5 {[%clk 0:02:59]} 2. Nf3 {[%clk 0:03:00]}  Nf6 {[%clk 0:02:59]} 3. Bf4 {[%clk 0:03:01]}  c5 {[%clk 0:02:59]} 4. e3 {[%clk 0:03:01]}  Nc6 {[%clk 0:02:58]} 5. Nbd2 {[%clk 0:03:00]}  Bg4 {[%clk 0:02:50]} 6. c3 {[%clk 0:02:55]}  e6 {[%clk 0:02:40]} 7. Qb3 {[%clk 0:02:55]}  Qc8 {[%clk 0:02:39]} 8. h3 {[%clk 0:02:53]}  Bxf3 {[%clk 0:02:29]} 9. Nxf3 {[%clk 0:02:53]}  c4 {[%clk 0:02:29]} 10. Qc2 {[%clk 0:02:52]}  b5 {[%clk 0:02:29]} 11. a3 {[%clk 0:02:52]}  a5 {[%clk 0:02:22]} 12. Be2 {[%clk 0:02:52]}  Ne4 {[%clk 0:02:18]} 13. Nd2 {[%clk 0:02:45]}  Nxd2 {[%clk 0:02:14]} 14. Qxd2 {[%clk 0:02:45]}  b4 {[%clk 0:02:14]} 15. a4 {[%clk 0:02:43]}  Be7 {[%clk 0:02:12]} 16. O-O {[%clk 0:02:43]}  O-O {[%clk 0:02:11]} 17. Rfe1 {[%clk 0:02:17]}  Rd8 {[%clk 0:02:02]} 18. f3 {[%clk 0:02:12]}  Bf6 {[%clk 0:01:50]} 19. Bh2 {[%clk 0:02:09]}  Qb7 {[%clk 0:01:13]} 20. Qc2 {[%clk 0:02:03]}  Qb6 {[%clk 0:01:03]} 21. Kh1 {[%clk 0:01:59]}  e5 {[%clk 0:00:55]} 22. Red1 {[%clk 0:01:40]}  exd4 {[%clk 0:00:43]} 23. exd4 {[%clk 0:01:40]}  Ra7 {[%clk 0:00:34]} 24. Re1 {[%clk 0:01:31]}  Rb7 {[%clk 0:00:32]} 25. Rab1 {[%clk 0:01:31]}  Bh4 {[%clk 0:00:16]} 26. g3 {[%clk 0:01:29]}  Bf6 {[%clk 0:00:10]} 27. f4 {[%clk 0:01:29]}  g6 {[%clk 0:00:10]} 28. Bf3 {[%clk 0:01:29]}  Ne7 {[%clk 0:00:10]} 29. g4 {[%clk 0:01:28]}  Qc6 {[%clk 0:00:09]} 30. Ra1 {[%clk 0:01:20]}  b3 {[%clk 0:00:08]} 31. Qg2 {[%clk 0:01:19]}  Rbd7 {[%clk 0:00:07]} 32. Bg3 {[%clk 0:01:08]}  Nc8 {[%clk 0:00:07]} 33. g5 {[%clk 0:01:01]}  Bg7 {[%clk 0:00:06]} 34. Bg4 {[%clk 0:01:01]}  Rc7 {[%clk 0:00:06]} 35. f5 {[%clk 0:01:01]}  Rb7 {[%clk 0:00:05]} 36. f6 {[%clk 0:00:59]}  Bf8 {[%clk 0:00:04]} 37. h4 {[%clk 0:00:55]}  Nb6 {[%clk 0:00:05]} 38. h5 {[%clk 0:00:54]}  Re8 {[%clk 0:00:05]} 39. hxg6 {[%clk 0:00:53]}  hxg6 {[%clk 0:00:04]} 40. Qh2 {[%clk 0:00:50]}  Rxe1+ {[%clk 0:00:04]} 41. Rxe1 {[%clk 0:00:50]}  Ra7 {[%clk 0:00:04]} 42. Kg2 {[%clk 0:00:50]}  Nd7 {[%clk 0:00:02]} 43. Rh1 {[%clk 0:00:49]}  Nxf6 {[%clk 0:00:03]} 44. Qh8# {[%clk 0:00:48]} 1-0


[Site "https://www.chess.com"]

[Event "Titled Tuesday Blitz May 25 2021"]
[White "Petriashvili, Nikoloz"]
[Black "Sjugirov, Sanan"]
[WhiteFideId "13611216"]
[BlackFideId "4189302"]
[WhiteElo "2430"]
[BlackElo "2472"]
[Result "1-0"]
[Round "04"]
[TimeControl "180+1"]
[Date "2021.05.25"]
[WhiteClock "0:00:32"]
[BlackClock "0:00:04"]

1. d4 {[%clk 0:03:00]}  Nf6 {[%clk 0:02:59]} 2. c4 {[%clk 0:03:01]}  e6 {[%clk 0:02:57]} 3. Nf3 {[%clk 0:03:01]}  d5 {[%clk 0:02:55]} 4. g3 {[%clk 0:03:01]}  Bb4+ {[%clk 0:02:54]} 5. Bd2 {[%clk 0:03:01]}  Be7 {[%clk 0:02:55]} 6. Qc2 {[%clk 0:03:00]}  c6 {[%clk 0:02:53]} 7. Bg2 {[%clk 0:03:00]}  b6 {[%clk 0:02:52]} 8. O-O {[%clk 0:03:01]}  O-O {[%clk 0:02:51]} 9. Ne5 {[%clk 0:03:00]}  Bb7 {[%clk 0:02:46]} 10. Rd1 {[%clk 0:02:56]}  Nbd7 {[%clk 0:02:43]} 11. Bf4 {[%clk 0:02:53]}  Rc8 {[%clk 0:02:42]} 12. Nc3 {[%clk 0:02:52]}  Nxe5 {[%clk 0:02:35]} 13. dxe5 {[%clk 0:02:52]}  Nd7 {[%clk 0:02:36]} 14. cxd5 {[%clk 0:02:53]}  cxd5 {[%clk 0:02:37]} 15. e4 {[%clk 0:02:53]}  dxe4 {[%clk 0:01:59]} 16. Bxe4 {[%clk 0:02:18]}  Bxe4 {[%clk 0:01:59]} 17. Qxe4 {[%clk 0:02:19]}  Qc7 {[%clk 0:01:40]} 18. Nb5 {[%clk 0:02:16]}  Nc5 {[%clk 0:01:40]} 19. Qf3 {[%clk 0:02:09]}  Qb8 {[%clk 0:01:35]} 20. Rac1 {[%clk 0:01:58]}  a6 {[%clk 0:01:27]} 21. Nd6 {[%clk 0:01:57]}  Rc7 {[%clk 0:01:22]} 22. b4 {[%clk 0:01:57]}  Na4 {[%clk 0:01:18]} 23. Rxc7 {[%clk 0:01:56]}  Qxc7 {[%clk 0:01:18]} 24. Rc1 {[%clk 0:01:57]}  Qb8 {[%clk 0:01:08]} 25. Qc6 {[%clk 0:01:54]}  b5 {[%clk 0:00:51]} 26. Qxa6 {[%clk 0:01:54]}  Nb2 {[%clk 0:00:37]} 27. a3 {[%clk 0:01:29]}  Bxd6 {[%clk 0:00:22]} 28. exd6 {[%clk 0:01:25]}  Nd3 {[%clk 0:00:21]} 29. Rc7 {[%clk 0:01:19]}  Nxf4 {[%clk 0:00:19]} 30. gxf4 {[%clk 0:01:20]}  Qd8 {[%clk 0:00:19]} 31. h3 {[%clk 0:01:06]}  g6 {[%clk 0:00:17]} 32. Re7 {[%clk 0:00:58]}  Qb8 {[%clk 0:00:06]} 33. Qc6 {[%clk 0:00:45]}  Rc8 {[%clk 0:00:04]} 34. Rc7 {[%clk 0:00:44]}  Rd8 {[%clk 0:00:05]} 35. d7 {[%clk 0:00:42]}  Kg7 {[%clk 0:00:04]} 36. Kf1 {[%clk 0:00:32]} 1-0


[Site "https://www.chess.com"]